Cogmind - Beta 16.1 @@@ ROGUE MODE // 2026.04.08 @ 17:21:25 Player: Lyft Result: Destroyed by G-34 Mercenary with Small Laser Performance ------------- Evolutions (0) 0 Regions Visited (1) 200 Robots Destroyed (18) 90 Value Destroyed (269) 269 Prototype IDs (0) 0 Alien Tech Used (0) 0 Bonus (0) 0 TOTAL SCORE: 559 Bonus ------- None Cogmind --------- Core Integrity 0/250 Matter 253/300 Energy 100/100 System Corruption 0% Temperature Cool (6) Movement Core (1350) Ox26 Location -10/Materials Parts ------- > --- POWER (1) -------- (None) > --- PROPULSION (2) --- (None) > --- UTILITY (2) ------ Huge Storage Unit Core Shielding > --- WEAPON (2) ------- (None) > --- INVENTORY (25) --- Ion Engine Improved Treads Improved Treads Compact Wheel Heat Sink Cargo Storage Unit Structural Scanner Seismic Detector Light Cannon Peak State ------------ > --- POWER ------------ Ion Engine > --- PROPULSION ------- Improved Treads Improved Treads > --- UTILITY ---------- Huge Storage Unit Seismic Detector > --- WEAPON ----------- Assault Rifle Assault Rifle > --- INVENTORY -------- Ion Engine Improved Treads Improved Treads Compact Wheel Core Shielding Assault Rifle Light Cannon Mining Laser [Rating: 10] Favorites ----------- Power Ion Engine Engine Ion Engine Propulsion Improved Treads Treads Improved Treads Leg Aluminum Leg Wheel Compact Wheel Utility Huge Storage Unit Device Seismic Detector Storage Huge Storage Unit Protection Core Shielding Weapon Assault Rifle Ballistic Gun Assault Rifle Special Weapon Mining Laser Build | -11 -10 ------- Run | Yrd Mat Slots Evolved . | . . Power . | . . Propulsion . | . . Utility . | . . Weapon . | . . Parts Attached 10 | . 10 Power 1 | . 1 Engine 1 | . 1 Core . | . . Reactor . | . . Propulsion 3 | . 3 Treads 2 | . 2 Leg . | . . Wheel 1 | . 1 Hover . | . . Flight . | . . Utility 3 | . 3 Device 1 | . 1 Storage 1 | . 1 Processor . | . . Hackware . | . . Protection 1 | . 1 Artifact . | . . Weapon 3 | . 3 Energy Gun . | . . Energy Cannon . | . . Ballistic Gun 2 | . 2 Ballistic Cannon . | . . Launcher . | . . Special Weapon 1 | . 1 Impact Weapon . | . . Slashing Weapon . | . . Piercing Weapon . | . . Special Melee Weapon . | . . Unidentified Prototypes . | . . Parts Lost 7 | . 7 Power 1 | . 1 Propulsion 2 | . 2 Utility . | . . Weapon 4 | . 4 Highest Loss Streak 5 | . 5 To Critical Strikes . | . . Average Backups 7 | 7 8 Power . | 1 . Propulsion 3 | 4 3 Utility 1 | . 2 Weapon 2 | 1 2 Tool/Special . | . . Unused Backups 14 | . 14 Power 3 | . 3 Propulsion 5 | . 5 Utility 4 | . 4 Weapon 2 | . 2 Tool/Special . | . . Average Slot Usage (%) 98 | . 98 Engine 14 | . 14 Treads 19 | . 19 Wheel 6 | . 6 Device 7 | . 7 Storage 14 | . 14 Protection 6 | . 6 Ballistic Gun 24 | . 24 Special Weapon 3 | . 3 Peak Build Rating 10 | 6 10 Average Rating 8 | 6 9 On Entrance 6 | 6 6 Avg Prop Armor Cover (%) 12 | . 12 Naked Turns . | . . Heaviest Build 90 | 14 90 Greatest Support 46 | 20 46 Greatest Overweight (x) 5 | . 5 Average Overweight (x) 1 | . 1 Largest Inventory Capacity 25 | 8 25 Average Capacity 21 | 8 22 Most Carried 10 | 8 10 Average Carried 8 | 7 8 Final Capacity 25 | 8 25 Final Carried 10 | 8 10 Class Distribution -------------------- 100% | Mutant Dominant Class ---------------- Mutant | -10/Materials Resources | -11 -10 ----------- Run | Yrd Mat Matter Collected 747 | 272 475 Remotely . | . . Salvage Created 490 | 125 365 Parts 39 | 9 30 Haulers Intercepted . | . . Recyclers Shooed 2 | 1 1 Parts Field Recycled . | . . Retrieved Matter . | . . Parts Self-Destructed . | . . Prevented . | . . Parts Restored . | . . Kills | -11 -10 ------- Run | Yrd Mat Combat Hostiles Destroyed 10 | . 10 Guns 10 | . 10 Classes Destroyed 6 | 3 3 Worker 5 | 2 3 Builder 1 | . 1 Tunneler 1 | 1 . Recycler 1 | 1 . Swarmer 5 | . 5 Grunt 5 | . 5 Best Kill Streak 3 | 2 3 Combat Bots Only 3 | . 3 Max Kills in Single Turn 2 | 1 2 Gunslinging . | . . Exploded . | . . Melee . | . . Uniques/NPCs Destroyed . | . . Combat | -11 -10 -------- Run | Yrd Mat Hostile Shots Fired 142 | . 142 Missed 38 | . 38 Hits 104 | . 104 Projectile 104 | . 104 Critical Strikes 1 | . 1 Damage Taken 1118 | . 1118 Core 253 | . 253 Absorbed by Shields . | . . Redirected to Shielding 45 | . 45 Core Remaining (%) 100 | 100 . Volleys Fired 80 | 12 68 Largest 2 | 2 2 Hottest 120 | 40 120 Shots Fired 137 | 24 113 Gun 133 | 24 109 Cannon . | . . Launcher . | . . Special 4 | . 4 Kinetic 133 | 24 109 Thermal 4 | . 4 Explosive . | . . Electromagnetic . | . . Robot Hit Streak 12 | 6 12 Robot Miss Streak 5 | 2 5 Penetration Max . | . . Secondary Targets 1 | . 1 Max Gunslinging Chain 1 | . 1 Shots Hit Robots 79 | 16 63 Core Hits 29 | 5 24 Critical Kills . | . . Critical Parts Destroyed . | . . Critical Strikes . | . . Melee Attacks . | . . Impact . | . . Slashing . | . . Piercing . | . . Sneak Attacks . | . . Combat Hostiles . | . . Follow-up Attacks . | . . Damage Inflicted 995 | 188 807 Guns 995 | 188 807 Cannons . | . . Explosions . | . . Melee . | . . Ramming . | . . Kinetic 995 | 188 807 Thermal . | . . Explosive . | . . Electromagnetic . | . . Impact . | . . Slashing . | . . Piercing . | . . Highest Corruption . | . . Average Corruption . | . . Corruption Purged . | . . Corruption Blocked . | . . Overload Shots . | . . Overflow Damage . | . . Projectiles . | . . Explosions . | . . Melee . | . . Knockbacks . | . . Impact . | . . Kinetic . | . . Secondary . | . . Self-Inflicted Damage . | . . Shots . | . . Rammed . | . . Targets Rammed . | . . Kicked . | . . Crushed . | . . Highest Temperature 20 | . 20 Average Temperature 8 | . 8 Received Heat Transfer 492 | . 492 Siege Activations . | . . Martial Activations . | . . Shielding Activations . | . . Robots Disrupted . | . . Combat Hostiles . | . . Robots Corrupted . | . . Combat Hostiles . | . . Parts Fried . | . . Impact Corruptions . | . . Robots Melted . | . . Combat Hostiles . | . . Parts Melted . | . . Heat Transferred . | . . Parts Sabotaged . | . . Parts Stolen . | . . Parts Stripped . | . . Power Chain Reactions . | . . Alert | -11 -10 ------- Run | Yrd Mat Maximum Alert Level . | . . Low Security (%) 100 | 100 100 Level 1 . | . . Level 2 . | . . Level 3 . | . . Level 4 . | . . Level 5 . | . . High Security . | . . Max Security . | . . Peak Influence 63 | 10 63 Initial . | . . Average 13 | 1 14 Influence Increases 334 | 20 314 Destroy 0b10 Robot/C 200 | . 200 Destroy 0b10 Robot/NC 40 | 20 20 Destroy Leader 40 | . 40 Successful Hack 33 | . 33 Destroy Structure 6 | . 6 Lose Combat Pursuer 15 | . 15 Influence Decreases 333 | 20 313 Time Decay 273 | 20 253 Lost Part 60 | . 60 Squads Dispatched 2 | . 2 Investigation 1 | . 1 Extermination . | . . Reinforcement 1 | . 1 Assault . | . . Garrison . | . . Intercept . | . . Searches Triggered . | . . Construction Impeded . | . . Haulers Reinforced . | . . Active Scanning Responses . | . . Cargo Convoy Interrupts . | . . Stealth | -11 -10 --------- Run | Yrd Mat Distress Signals 2 | . 2 Communications Jammed . | . . Distress Signals . | . . Times Spotted 22 | . 22 Peak Tracking Total 5 | . 5 Tactical Retreats 1 | . 1 Traps | -11 -10 ------- Run | Yrd Mat Traps Triggered . | . . Indirectly . | . . Trap Hack Attempts . | . . Triggered . | . . Disarmed . | . . Reprogrammed . | . . Reused . | . . Traps Extracted . | . . Installed . | . . Triggered . | . . Machines | -11 -10 ---------- Run | Yrd Mat Machines Disabled . | . . Max in Single Turn . | . . Machines Repaired . | . . Machines Dismantled . | . . Machines Sabotaged . | . . Overloaded Fab Kills . | . . Hacking | -11 -10 --------- Run | Yrd Mat Machines Accessed 6 | . 6 Terminals 6 | . 6 Fabricators . | . . Repair Stations . | . . Recycling Units . | . . Scanalyzers . | . . Garrison Access . | . . Total Hacks 21 | . 21 Successful 13 | . 13 Failed 8 | . 8 Catastrophic 2 | . 2 Database Lockouts . | . . Manual 20 | . 20 Terminals 21 | . 21 Fabricators . | . . Repair Stations . | . . Recycling Units . | . . Scanalyzers . | . . Garrison Access . | . . Terminal Hacks 4 | . 4 Robot Analysis 2 | . 2 Terminal Index 1 | . 1 Recall Investigation 1 | . 1 Fabricator Hacks . | . . Repair Station Hacks . | . . Recycling Unit Hacks . | . . Scanalyzer . | . . Garrison Access Hacks . | . . Unauthorized Hacks 9 | . 9 Terminals 9 | . 9 Assimilate 2 | . 2 Botnet 2 | . 2 Operators 1 | . 1 Skim 4 | . 4 Fabricators . | . . Repair Stations . | . . Recycling Units . | . . Scanalyzers . | . . Garrison Access . | . . Data Cores Recovered . | . . Used . | . . Hacking Detections 5 | . 5 Full Trace Events 1 | . 1 Feedback Events . | . . Feedback Blocked . | . . Robot Schematics Acquired . | . . Robots Built . | . . Authchips . | . . Time . | . . Total Robot Build Rating . | . . Part Schematics Acquired . | . . Parts Built . | . . Authchips . | . . Time . | . . Total Part Build Rating . | . . Part Studies Acquired . | . . Parts Repaired . | . . Time . | . . Parts Recycled . | . . Recycled Matter . | . . Retrieved Matter . | . . Retrieved Components . | . . Parts Scanalyzed . | . . Part Schematics Acquired . | . . Parts Damaged . | . . Bothacking | -11 -10 ------------ Run | Yrd Mat Used RIF Installer . | . . Robots Hacked . | . . Non-combat . | . . Combat . | . . Robot Hacks Applied . | . . Relay Couplers Released . | . . Fabnet Peak Effective % . | . . Robots Rewired . | . . Allies Hacked . | . . Hacks Repelled . | . . Allies | -11 -10 -------- Run | Yrd Mat Total Allies 1 | . 1 Largest Group 1 | . 1 Highest-Rated Group 10 | . 10 Highest-Rated Ally 10 | . 10 Total Orders 8 | . 8 STAY 5 | . 5 FOLLOW 3 | . 3 Ally Attacks . | . . Total Damage . | . . Kills . | . . Allies Corrupted . | . . Allies Melted . | . . Intel | -11 -10 ------- Run | Yrd Mat Active Infowar (turns) 993 | . 993 Seismic 993 | . 993 Robot Analysis Total 2 | . 2 Derelict Logs Recovered . | . . Drone Launches . | . . Drone Recoveries . | . . Exploration | -11 -10 ------------- Run | Yrd Mat Turns Passed 1983 | 122 1861 Spaces Moved 716 | 34 682 Core 1 | . 1 Treads 289 | . 289 Legs 63 | 34 29 Wheels 363 | . 363 Hover . | . . Flight . | . . Fastest Speed 100 | 120 100 Average Speed 179 | 120 182 Slowest Speed 250 | 120 250 Overloaded Moves . | . . Propulsion Burnouts . | . . Robots Hopped . | . . Potential Cave-ins . | . . Cave-ins Triggered . | . . Exploration Rate (%) 39 | 4 75 Regions Visited 1 Branch Regions . Pre-discovered Areas . | . . Known Exits Taken . | . . Unknown Exits Taken 1 | 1 . Scrap Searched . | . . Spaces Dug 4 | . 4 Terrain Destroyed 4 | . 4 Melee . | . . Projectile 4 | . 4 AOE . | . . Terrain Rammed . | . . Walls Destroyed . | . . Machines Disabled . | . . Actions | -11 -10 --------- Run | Yrd Mat Total 1264 | 91 1173 Wait 426 | 44 382 Move 715 | 33 682 Hop . | . . Pick Up 12 | 2 10 Fast Attach 2 | . 2 Attach 3 | . 3 Detach . | . . Swap 18 | . 18 Drop 8 | . 8 Fire 80 | 12 68 Melee . | . . Ram . | . . Kick . | . . Crush . | . . Escape Stasis . | . . Rewire . | . . Trap . | . . Miscellaneous . | . . Route ------- -11/Scrapyard -10/Materials (discovered 5 exits: [*Mat x2] / [*Min x2] / [*Sub]) History --------- Turn | Location | Event 1 | -11/Scrapyard | Discovered new exit (range 3) 123 | -11/Scrapyard | Entered Materials 298 | -10/Materials | Discovered new exit (range 9) 316 | -10/Materials | Build established: Mutant 548 | -10/Materials | Discovered new exit (range 14) 932 | -10/Materials | Discovered new exit (range 16) 1474 | -10/Materials | Discovered new exit (range 15) 1782 | -10/Materials | Discovered new exit (range 10) 1934 | -10/Materials | Core integrity fell below 50% 1979 | -10/Materials | Core integrity fell below 20% 1984 | -10/Materials | Destroyed by G-34 Mercenary with Small Laser Last Messages --------------- 01864_ Technician 1a reveals location of hidden door. 01864_ Technician 1a reveals location of Blade Trap. 01900_ Connecting with Terminal... >>Recall(Investigation) Establishing remote squad link... No tasked investigation squads found. 01900_ ALERT: Suspicious activity at Terminal M004. Dispatching Investigation squad. 01936_ G-34 Mercenary destroyed. 01936_ Switching to secondary target: G-34 Mercenary. 01946_ Assault Rifle destroyed. 01952_ W-16 Scout sends out distress signal. 01958_ Imp. Treads destroyed. 01964_ M-13 Machinist destroyed. 01974_ Assault Rifle destroyed. 01978_ Imp. Treads destroyed. 01980_ Ion Engine destroyed. Map ----- +----------------------------------------------------+ | | | | | | | | | | | | | | | | | | | | | | | | | ???????????????????????????????????? | | ???????????????????????????????????? | | ???????????????????????????????????? | | ???????????????????????????????????? | | ???????????????????????????????????? | | ????####???????????????????????????? | | ????# #???????????????????????????? | | ????# #???????????????????????????? | | ????# #???????????????????????????? | | ????# #???????????????????????????? | | ???## ##??????????????????????????? | | ???# ##+########### ????????? | | ???# ^%g ????????? | | ???# g @%* ????????? | | ???# ### =#######???????????????? | | ???## ##?# #?????????????????????? | | ????# #??# +?????????????????????? | | ????# #??# # ????????????????????? | | ????# #??# ###???????????????????? | | ????# #??# #?????????????????????? | | ????## #??# #?????????????????????? | | ?????# #??# +?????????????????????? | | ?????# #??? #?????????????????????? | | ???###/#### g#???????#?????????????? | | ???# T # #??????? ????????????? | | ???# o #g #??????? ????????????? | | ???# """ +k ???????? ????????????? | | ???# """ # ??????? ????????????? | | ???# """ # +?????? ????????????? | | ???# # #?????? ????????????? | | ???##+##### #?????? ?????????????? | | ????# #???# #?????? ?????????????? | | ???##+##### #??????+#?????????????? | | ???# # #?????? #???????????### | | ???# !# #????## ##########+## | | ???#= # #????#! | | ???# # ######% | | ???# # %* | +----------------------------------------------------+ Best States ------------- Heat Dissipation 25 Energy Generation 10 Energy Capacity 250 Matter Stores 300 Matter Capacity 300 Sight Range 16 Terrain Scan Density 10 Core Shielding 20 Evasion (%) 50 Recoil Reduction 2 Item Schematics ----------------- None Robot Schematics ------------------ None Fabricated ------------ Nothing Repaired ---------- Nothing Studied --------- None Alien Tech Used ----------------- None Achievements -------------- None Challenges ------------ None Game ------ Seed CompactTerrabombDriver Manual? 0 Play Time 00:14:12 Cumulative 73.6 hours Start 2026.04.08 @ 17:08:48 End 2026.04.08 @ 17:21:25 Sessions 1 Manual Loads 0 Difficulty Rogue Special Mode None Game No. 66 Rogue 56 Adventurer 9 Explorer 1 Win Type - Total 0 Types 0/0/0/0/0/0/0/0/0/0 Lore% 38 Gallery% 34 Achievement% 27 Wizard Run 0 Options --------- Layout 2 ASCII 0 Keyboard 0 Movement Mouse Keybinds 0 Fullscreen 1 Font 48/Terminus Map View 50x44 Zoom Use 0% Tactical HUD 1 Map Filters NONE Filters NONE Steam 1 RUN: e77c950d-4c86-45f6-9a3e-e0390d63ad2b